bitfinex-derivatives/quotes_BTCF0:USTF0_20240814
["timestamp","ask_amount","ask_price","bid_price","bid_amount"]
[1723644151069,0.00025291,59311.0,59310.0,0.484267]
[1723644151268,0.084247,59325.0,59310.0,0.9058]
[1723644151468,0.3608,59326.0,59316.0,0.084258]
[1723644151777,0.00016096,59325.0,59317.0,0.084257]
[1723644152074,0.3608,59349.0,59348.0,0.084214]
[1723644152279,0.00156001,59360.0,59348.0,0.3608]
[1723644152480,0.3608,59366.0,59356.0,0.445002]
[1723644152675,0.3608,59373.0,59356.0,0.445002]
[1723644152676,0.3608,59373.0,59372.0,0.084179]
[1723644152878,0.55518,59399.0,59366.0,0.084188]
[1723644152879,0.3608,59386.0,59384.0,0.084161]
[1723644153180,0.3608,59396.0,59395.0,0.084147]
[1723644153589,0.4666,59423.0,59409.0,0.084127]
[1723644153590,0.3608,59410.0,59409.0,0.084127]
[1723644153769,0.3608,59410.0,59409.0,0.070127]
[1723644154091,0.3608,59428.0,59409.0,1.26576]
[1723644154275,0.3608,59428.0,59425.0,0.084104]
[1723644154476,0.3608,59428.0,59392.0,0.06560908]
[1723644154477,0.3608,59428.0,59427.0,0.084102]
[1723644154778,0.3608,59435.0,59416.0,0.3608]
[1723644154980,0.3608,59430.0,59421.0,0.3608]
[1723644155181,0.3608,59435.0,59426.0,0.3608]
[1723644155389,0.3608,59442.0,59441.0,0.084082]
[1723644155976,0.3608,59442.0,59435.0,0.08409]
[1723644156177,0.08409,59436.0,59416.0,0.084116]
[1723644156383,0.3608,59425.0,59416.0,0.3608]
[1723644156583,0.3608,59425.0,59411.0,0.3608]
[1723644156584,0.3608,59419.0,59412.0,0.084123]
[1723644156890,0.3608,59419.0,59411.0,0.3608]
[1723644157080,0.3608,59425.0,59424.0,0.084106]
[1723644157385,0.3608,59432.0,59431.0,0.084096]
[1723644157685,0.00025245,59430.0,59416.0,0.3608]
[1723644157890,0.3608,59424.0,59415.0,0.00025245]
[1723644158185,0.3608,59416.0,59415.0,0.00025245]
[1723644158386,0.08414,59400.0,59396.0,0.00018151]
[1723644158586,0.084143,59398.0,59396.0,0.00018151]
[1723644158884,0.72268,59401.0,59372.0,0.3608]
[1723644159085,0.3608,59374.0,59366.0,0.084187]
[1723644159288,0.4666,59387.0,59365.0,0.3608]
[1723644159289,0.3608,59387.0,59379.0,0.084169]
[1723644159491,0.23576,59406.0,59378.0,0.3608]
[1723644159492,0.3608,59392.0,59378.0,0.3608]
[1723644159783,0.00018151,59391.0,59386.0,0.084158]
[1723644159988,0.00018151,59391.0,59389.0,0.084154]
[1723644160189,0.3608,59406.0,59390.0,0.3608]
[1723644160486,0.3608,59406.0,59396.0,0.3608]
[1723644160782,0.3608,59418.0,59408.0,0.084128]
[1723644160984,0.3608,59418.0,59403.0,0.3608]
[1723644160985,0.00025245,59404.0,59403.0,0.3608]
[1723644161189,1e-08,59404.0,59403.0,0.844935]
[1723644161381,1e-08,59404.0,59403.0,1.349975]
[1723644161778,0.3608,59418.0,59403.0,1.26584]
[1723644161986,0.3608,59418.0,59415.0,0.001]
[1723644162278,0.3618,59424.0,59422.0,0.084108]
[1723644162279,0.3608,59424.0,59422.0,0.084108]
[1723644162684,0.3608,59443.0,59423.0,0.50484]
[1723644162886,0.3608,59432.0,59419.0,0.3608]
[1723644163275,0.3608,59432.0,59425.0,0.084104]
[1723644163482,0.3608,59426.0,59418.0,0.084114]
[1723644163676,0.3608,59426.0,59410.0,0.084125]
[1723644163677,0.3608,59419.0,59410.0,0.084125]
[1723644163881,0.3608,59419.0,59417.0,0.084115]
[1723644164381,0.00025245,59429.0,59428.0,0.0841]
[1723644165183,0.00025245,59429.0,59416.0,0.3608]
[1723644166582,0.00025245,59429.0,59427.0,0.084101]
[1723644168088,4.5e-07,59429.0,59428.0,1.0338]
[1723644168394,0.084072,59448.0,59428.0,0.8656]
[1723644168582,0.084069,59450.0,59444.0,0.084077]
[1723644168780,0.3608,59452.0,59428.0,0.3608]
[1723644168781,0.3608,59446.0,59433.0,0.3608]
[1723644168985,0.084076,59445.0,59433.0,0.3608]
[1723644169190,0.3608,59446.0,59433.0,0.3608]
[1723644169382,0.084082,59441.0,59433.0,0.3608]
[1723644169578,0.3608,59446.0,59433.0,0.3608]
[1723644169795,0.3608,59446.0,59426.0,0.3608]
[1723644169981,0.00025245,59445.0,59433.0,0.36105245]
[1723644170182,0.3608,59436.0,59435.0,0.08409]
[1723644170782,0.00025245,59445.0,59439.0,0.084084]
[1723644170990,0.00025245,59445.0,59435.0,0.00088]
[1723644171291,0.00025245,59445.0,59438.0,0.084085]
[1723644171490,0.00025245,59445.0,59433.0,0.36105245]
[1723644171683,0.00025245,59445.0,59442.0,0.08408]
[1723644171877,0.00025245,59445.0,59444.0,0.084077]
[1723644172392,0.00025245,59445.0,59444.0,0.588757]
[1723644172595,0.3608,59452.0,59451.0,0.084067]
[1723644173191,0.08407,59450.0,59439.0,0.002]
[1723644173383,0.3608,59452.0,59439.0,0.002]
[1723644173792,0.3608,59452.0,59451.0,0.084067]
[1723644173987,0.084069,59450.0,59445.0,0.084075]
[1723644174185,0.084069,59450.0,59446.0,0.084074]
[1723644174490,0.00025245,59451.0,59439.0,0.002]
[1723644174491,0.00025245,59451.0,59440.0,0.00025245]
[1723644174990,0.00025245,59451.0,59444.0,0.01]
[1723644175588,0.00025245,59451.0,59450.0,0.084069]
[1723644176087,0.00025245,59451.0,59450.0,0.588709]
[1723644176680,0.00025245,59451.0,59450.0,0.084069]
[1723644177187,0.00025245,59451.0,59450.0,0.588709]
[1723644177890,0.00025245,59451.0,59450.0,0.988709]
[1723644178087,0.00025245,59451.0,59450.0,0.588709]
[1723644178293,0.00025245,59451.0,59450.0,0.988709]
[1723644178599,0.00025245,59451.0,59450.0,0.588709]
[1723644178891,0.00025245,59451.0,59450.0,1.499509]
[1723644179308,0.00025245,59451.0,59450.0,1.099509]
[1723644179895,0.00025245,59451.0,59450.0,0.949509]
[1723644180485,0.00025245,59451.0,59450.0,1.489509]
[1723644180796,0.00025245,59451.0,59450.0,0.444869]
[1723644180983,0.00025245,59451.0,59443.0,0.01212517]
[1723644181289,0.00025245,59451.0,59450.0,0.084069]
[1723644182790,0.36105245,59451.0,59450.0,0.084069]
[1723644182995,0.36105245,59451.0,59450.0,0.086069]
[1723644184081,0.00025245,59451.0,59450.0,0.086069]
[1723644184694,0.00025245,59451.0,59450.0,0.084069]
[1723644184894,0.00025245,59451.0,59450.0,0.086069]
[1723644185285,0.00025245,59451.0,59450.0,0.750709]
[1723644185896,0.00025245,59451.0,59450.0,0.246069]
[1723644186085,0.00025245,59451.0,59450.0,0.750709]
[1723644186289,0.00025245,59451.0,59450.0,1.150709]
[1723644187695,1e-08,59451.0,59450.0,1.150709]
[1723644187895,1e-08,59451.0,59450.0,0.750709]
[1723644188089,1e-08,59451.0,59450.0,1.150709]
[1723644188895,1e-08,59451.0,59450.0,0.246069]
[1723644189092,1e-08,59451.0,59450.0,0.750709]
[1723644189697,1e-08,59451.0,59450.0,1.150709]
[1723644189885,1e-08,59451.0,59450.0,0.086069]
[1723644190083,0.50468,59450.0,59427.0,0.01177282]
[1723644190294,0.3608,59436.0,59427.0,0.0085939]
[1723644190493,0.3608,59436.0,59435.0,0.08409]
[1723644191097,0.06244207,59441.0,59439.0,0.084085]
[1723644191294,0.28928,59453.0,59435.0,0.08409]
[1723644191295,0.06244207,59448.0,59447.0,0.084073]
[1723644191488,0.3608,59450.0,59447.0,0.084073]
[1723644191688,0.06244207,59449.0,59440.0,0.3608]
[1723644192393,0.00025245,59446.0,59445.0,0.084076]
[1723644193185,0.00025245,59446.0,59445.0,0.588756]
[1723644193598,0.00025245,59446.0,59445.0,0.672833]
[1723644193893,0.06244207,59460.0,59445.0,1.41548]
[1723644194097,0.3608,59463.0,59460.0,0.084055]
[1723644194098,0.06244207,59462.0,59460.0,0.084055]
[1723644194291,0.06244207,59461.0,59460.0,0.084055]
[1723644195089,0.01213027,59464.0,59460.0,0.084055]
[1723644195090,0.07457234,59464.0,59460.0,0.084055]
[1723644195290,0.01213027,59464.0,59459.0,0.084056]
[1723644195589,0.01213027,59464.0,59455.0,0.00025245]
[1723644195590,0.06244207,59465.0,59456.0,0.084061]
[1723644195793,0.06269452,59466.0,59461.0,0.3608]
[1723644195996,0.06269452,59466.0,59455.0,0.00878334]
[1723644195997,0.00025245,59466.0,59455.0,0.00878334]
[1723644196208,0.06244207,59465.0,59455.0,0.00878334]
[1723644196389,0.06244207,59465.0,59462.0,0.084052]
[1723644196589,0.06244207,59465.0,59455.0,0.00878334]
[1723644196590,0.06244207,59464.0,59455.0,0.00878334]
[1723644196789,0.06244207,59464.0,59455.0,0.00025245]
[1723644197007,0.06244207,59464.0,59461.0,0.084054]
[1723644197397,0.06244207,59463.0,59461.0,0.084054]
[1723644197906,0.00025245,59466.0,59462.0,0.084052]
[1723644198099,0.00025245,59466.0,59462.0,0.13430154]
[1723644198403,0.00025245,59466.0,59465.0,0.084048]
[1723644198697,0.00025245,59466.0,59464.0,0.05024954]
[1723644199199,0.3608,59465.0,59461.0,0.05024954]
[1723644199390,0.3608,59465.0,59458.0,0.05024954]
[1723644199594,0.3608,59459.0,59457.0,0.05024954]
[1723644199890,0.3608,59459.0,59458.0,0.084058]
[1723644200600,0.3608,59465.0,59458.0,0.05024954]
[1723644200792,0.3608,59465.0,59463.0,0.08405]
[1723644201303,0.3608,59465.0,59464.0,0.08405]
[1723644201690,0.00025245,59466.0,59465.0,0.084048]
[1723644201891,0.00025245,59466.0,59465.0,1.667424]
[1723644201892,4.5e-07,59466.0,59465.0,1.667424]
[1723644202209,0.3608,59499.0,59498.0,0.075742]
[1723644202499,0.3608,59499.0,59498.0,0.05822663]
[1723644202701,0.3608,59507.0,59498.0,0.3608]
[1723644202890,0.3608,59507.0,59506.0,0.08399]
[1723644203089,0.3608,59514.0,59506.0,0.08399]
[1723644203090,0.2871,59521.0,59513.0,0.08398]
[1723644203405,0.3608,59519.0,59498.0,0.3608]
[1723644203707,0.00025224,59512.0,59511.0,0.083983]
[1723644203897,0.00025224,59512.0,59501.0,0.00025224]
[1723644204399,0.00025224,59512.0,59506.0,0.083989]
[1723644204602,0.083986,59510.0,59506.0,0.083989]
[1723644204899,0.3608,59511.0,59501.0,0.00025224]
[1723644205093,0.12488415,59506.0,59502.0,0.3608]
[1723644205296,0.05966304,59505.0,59502.0,0.3608]
[1723644205595,0.00025224,59512.0,59503.0,0.588155]
[1723644205796,0.12722683,59506.0,59503.0,0.083995]
[1723644205997,0.10076686,59505.0,59504.0,0.444793]
[1723644206194,0.10076686,59505.0,59504.0,0.844793]
[1723644206391,0.049937,59508.0,59507.0,0.083989]
[1723644206599,0.05965078,59508.0,59507.0,0.167978]
[1723644206806,0.05965078,59508.0,59507.0,1.072098]
[1723644207002,0.02722055,59508.0,59507.0,1.072098]
[1723644207201,0.00025224,59512.0,59511.0,0.167966]
[1723644207202,2.4e-07,59512.0,59511.0,0.167966]
[1723644207499,0.14313018,59526.0,59511.0,0.167966]
[1723644207500,0.0362083,59515.0,59514.0,0.083979]
[1723644207699,3e-07,59515.0,59514.0,0.756017]
[1723644207906,3.7e-07,59515.0,59514.0,1.306017]
[1723644208198,8.5e-07,59518.0,59516.0,0.083976]
[1723644208398,0.51690519,59549.0,59517.0,0.3608]
[1723644208399,0.11101989,59540.0,59517.0,0.3608]
[1723644208599,0.3608,59537.0,59532.0,0.083954]
[1723644208903,0.083965,59524.0,59523.0,0.3608]
[1723644209103,0.083957,59530.0,59511.0,0.00025202]
[1723644209104,0.3608,59530.0,59513.0,0.00937094]
[1723644209309,0.03242602,59529.0,59521.0,0.3608]
[1723644209497,0.444756,59530.0,59521.0,0.3608]
[1723644209695,0.444756,59530.0,59512.0,0.3608]
[1723644209696,0.3608,59525.0,59512.0,0.3608]
[1723644209892,0.37014221,59530.0,59519.0,0.00025202]
[1723644210098,0.11127191,59540.0,59525.0,0.3608]
[1723644210297,0.03242076,59539.0,59530.0,0.3608]
[1723644210497,0.083945,59538.0,59535.0,0.083949]
[1723644210799,0.083955,59531.0,59530.0,0.3608]
[1723644210993,0.083956,59530.0,59519.0,0.00025202]
[1723644211196,0.083956,59530.0,59513.0,0.014]
[1723644211197,0.3608,59527.0,59518.0,0.3608]
[1723644211495,0.00025202,59538.0,59524.0,0.3608]
[1723644211700,0.08419702,59538.0,59524.0,0.36922594]
[1723644211899,0.00025202,59538.0,59519.0,0.00025202]
[1723644212202,0.3608,59527.0,59519.0,0.00025202]
[1723644212501,0.3608,59522.0,59521.0,0.083969]
[1723644212696,0.083969,59521.0,59519.0,0.00025202]
[1723644213301,0.083971,59520.0,59519.0,0.00025202]
[1723644213896,0.079971,59520.0,59519.0,0.00025202]
[1723644214190,0.984011,59520.0,59519.0,0.00025202]
[1723644214401,0.083982,59512.0,59511.0,0.00944089]
[1723644214700,0.3608,59512.0,59502.0,0.083995]
[1723644215090,0.3608,59512.0,59498.0,0.3608]
[1723644215295,0.3608,59512.0,59477.0,0.001]
[1723644215296,0.3608,59500.0,59477.0,0.001]
[1723644215503,0.3608,59491.0,59474.0,0.3608]
[1723644215704,0.5087,59505.0,59467.0,0.3608]
[1723644215705,0.3608,59479.0,59467.0,0.3608]
[1723644215900,0.084037,59473.0,59468.0,0.084044]
[1723644216100,0.084039,59472.0,59467.0,0.3608]
[1723644216295,0.3608,59479.0,59467.0,0.3608]
[1723644216296,0.08404,59471.0,59467.0,0.3608]
[1723644216599,0.3559485,59479.0,59467.0,0.36105202]
[1723644217193,0.00025202,59475.0,59474.0,0.084035]
[1723644217392,0.3608,59491.0,59489.0,0.084014]
[1723644217600,0.37015404,59507.0,59504.0,0.083993]
[1723644217795,0.3608,59507.0,59496.0,0.3608]
[1723644218002,0.3608,59507.0,59501.0,0.083997]
[1723644218201,0.3608,59514.0,59496.0,0.3608]
[1723644218396,0.3608,59520.0,59507.0,0.3608]
[1723644218598,0.3608,59520.0,59518.0,0.083972]
[1723644218800,0.3608,59520.0,59512.0,0.3608]
[1723644218998,0.083979,59514.0,59512.0,0.3608]
[1723644219200,0.3608,59514.0,59501.0,0.3608]
[1723644219401,0.083993,59504.0,59501.0,0.3608]
[1723644219913,0.083999,59500.0,59499.0,0.00025202]
[1723644220097,0.04198541,59500.0,59499.0,0.00025202]
[1723644220406,0.3608,59502.0,59499.0,0.00025202]
[1723644220824,0.3608,59511.0,59499.0,0.00025202]
[1723644220997,0.083997,59501.0,59499.0,0.00025202]
[1723644221201,0.083989,59507.0,59499.0,0.00025202]
[1723644221405,0.001,59500.0,59499.0,0.08425202]
[1723644221910,0.001,59500.0,59499.0,0.58845202]
[1723644222102,0.3608,59519.0,59511.0,0.083982]
[1723644222306,0.3608,59519.0,59499.0,1.26525202]
[1723644222307,0.3608,59514.0,59499.0,0.36105202]
[1723644222508,0.083997,59501.0,59499.0,0.00025202]
[1723644223011,0.167995,59501.0,59499.0,0.00025202]
[1723644223308,0.167995,59501.0,59483.0,0.00016479]
[1723644223309,0.5042,59500.0,59483.0,0.00016479]
[1723644223515,0.08402,59485.0,59483.0,0.00016479]
[1723644224011,0.07602,59485.0,59483.0,0.00016479]
[1723644224410,0.3608,59492.0,59485.0,0.08402]
[1723644224715,0.3608,59492.0,59483.0,0.00016479]
[1723644225111,0.3608,59492.0,59483.0,0.00616479]
[1723644225306,0.3608,59492.0,59491.0,0.084011]
[1723644225508,0.084,59499.0,59483.0,0.00616479]
[1723644225815,0.00025202,59494.0,59493.0,0.084009]
[1723644226022,0.00025202,59494.0,59483.0,0.00616479]
[1723644226023,0.084012,59491.0,59483.0,0.00616479]
[1723644226309,0.36105202,59494.0,59483.0,0.00616479]
[1723644226511,0.084015,59489.0,59483.0,0.00616479]
[1723644226813,0.36105202,59494.0,59483.0,0.00616479]
[1723644227013,0.3608,59490.0,59483.0,0.00641681]
[1723644227315,0.084021,59484.0,59483.0,0.00641681]
[1723644227517,0.3608,59490.0,59470.0,0.05025332]
[1723644227518,0.3608,59485.0,59470.0,0.05025332]
[1723644227813,0.3558,59471.0,59466.0,0.084046]
[1723644228010,0.3558,59471.0,59460.0,0.3608]
[1723644228207,0.3558,59471.0,59467.0,0.084045]
[1723644228513,0.3558,59471.0,59470.0,0.084041]
[1723644228720,0.3558,59471.0,59460.0,0.3608]
[1723644228721,0.35597241,59471.0,59460.0,0.41105332]
[1723644228910,0.35597241,59471.0,59470.0,0.014]
[1723644229214,0.92405241,59471.0,59470.0,0.014]
[1723644229410,1.42849241,59471.0,59470.0,0.014]
[1723644229618,1.34445241,59471.0,59470.0,0.014]
[1723644229912,0.08405,59464.0,59463.0,0.00025224]
[1723644230119,0.44485,59464.0,59463.0,0.00025224]
[1723644230908,0.44485,59464.0,59444.0,0.06700443]
[1723644230909,1.26549943,59464.0,59442.0,0.08426979]
[1723644231108,0.084079,59443.0,59442.0,0.00018879]
[1723644231306,0.72176544,59443.0,59424.0,0.41105332]
[1723644231511,0.3608,59435.0,59424.0,0.3608]
[1723644231706,0.3608,59435.0,59417.0,0.444916]
[1723644231707,0.3608,59429.0,59417.0,0.444916]
[1723644231906,0.3608,59429.0,59417.0,0.3608]
[1723644232209,0.00018228,59428.0,59417.0,0.3608]
[1723644232411,0.00018228,59428.0,59417.0,0.36105224]
[1723644233015,0.444915,59418.0,59417.0,1e-08]
[1723644233218,0.44508105,59418.0,59417.0,1e-08]
[1723644233418,0.36096605,59418.0,59417.0,1e-08]
[1723644233920,0.00016605,59418.0,59417.0,1e-08]
[1723644235022,0.00025224,59429.0,59417.0,0.50492001]
[1723644235219,0.00025224,59429.0,59417.0,0.36080001]
[1723644235609,0.3608,59424.0,59417.0,1e-08]
[1723644235913,0.3608,59418.0,59417.0,1e-08]
[1723644236222,0.084122,59413.0,59406.0,0.084131]
[1723644236534,0.86968029,59418.0,59398.0,0.3608]
[1723644236535,0.3608,59412.0,59398.0,0.3608]
[1723644236721,0.3608,59412.0,59411.0,0.084125]
[1723644237223,0.3608,59412.0,59404.0,0.3608]
[1723644237415,0.3608,59412.0,59411.0,0.084125]
[1723644237617,0.00969176,59434.0,59411.0,0.3608]
[1723644237821,0.084092,59434.0,59423.0,0.3608]
[1723644238015,0.3608,59440.0,59423.0,0.3608]
[1723644238211,0.084106,59424.0,59423.0,0.3608]
[1723644238415,0.3608,59434.0,59416.0,0.3608]
[1723644238720,0.3608,59428.0,59416.0,0.3608]
[1723644238917,0.084116,59417.0,59416.0,0.3608]
[1723644239128,0.3608,59422.0,59419.0,0.00025248]
[1723644239333,0.3608,59422.0,59419.0,0.08436548]
[1723644239619,0.3608,59422.0,59419.0,0.00025248]
[1723644239813,0.084112,59420.0,59419.0,0.00025248]
[1723644240011,0.168224,59420.0,59419.0,0.00025248]
[1723644240212,1.349792,59420.0,59404.0,0.444934]
[1723644240414,0.3608,59413.0,59404.0,0.3608]
[1723644240608,0.3608,59413.0,59378.0,0.28577332]
[1723644240609,0.3608,59408.0,59391.0,0.36099481]
[1723644240813,0.084116,59417.0,59391.0,0.36099481]
[1723644240814,0.3608,59420.0,59406.0,0.3608]
[1723644241123,0.084116,59418.0,59412.0,0.084123]
[1723644241438,0.084129,59408.0,59407.0,0.00025248]
[1723644241722,0.589129,59408.0,59407.0,0.00025248]
[1723644241909,0.989129,59408.0,59407.0,0.00025248]
[1723644242114,0.084141,59400.0,59393.0,0.3608]
[1723644242425,0.3608,59398.0,59391.0,0.00019481]
[1723644242612,0.00979859,59400.0,59391.0,0.00019481]
[1723644242812,0.084137,59402.0,59396.0,0.084145]
[1723644243117,0.6401,59407.0,59391.0,0.00019481]
[1723644243118,0.3608,59401.0,59391.0,0.00019481]
[1723644243317,0.3608,59407.0,59391.0,0.00019481]
[1723644243516,0.3608,59407.0,59394.0,0.3608]
[1723644243719,0.3608,59407.0,59406.0,0.084132]
[1723644244028,0.00025248,59405.0,59395.0,0.084146]
[1723644244326,0.00025248,59405.0,59404.0,0.084134]
[1723644244626,0.001,59408.0,59407.0,0.08413]
[1723644244930,0.001,59408.0,59404.0,0.3608]
[1723644245133,0.001,59408.0,59407.0,0.08413]
[1723644245513,0.001,59407.0,59404.0,0.3608]
[1723644245724,0.001,59407.0,59406.0,0.084132]
[1723644246313,0.5087,59432.0,59406.0,0.084132]
[1723644246314,0.3608,59428.0,59427.0,0.084102]
[1723644246516,0.5087,59442.0,59407.0,0.50496]
[1723644246517,0.084099,59429.0,59421.0,0.3608]
[1723644246732,0.00088,59442.0,59421.0,0.3608]
[1723644246733,0.00937625,59440.0,59421.0,0.3608]
[1723644247024,0.3608,59438.0,59421.0,0.3608]
[1723644247223,0.084119,59415.0,59409.0,0.444926]
[1723644247420,0.5087,59421.0,59409.0,0.3608]
[1723644247618,0.5087,59421.0,59403.0,0.3608]
[1723644247820,0.5087,59421.0,59409.0,0.3608]
[1723644248026,0.084125,59411.0,59409.0,0.3608]
[1723644248222,0.084126,59410.0,59409.0,0.00025248]
[1723644248526,0.001,59408.0,59403.0,0.3608]
[1723644248826,0.001,59408.0,59407.0,0.08413]
[1723644249429,0.00025248,59416.0,59415.0,0.084119]
[1723644249932,0.3608,59430.0,59429.0,0.084099]
[1723644250116,0.3608,59430.0,59422.0,0.3608]
[1723644250517,0.084108,59423.0,59422.0,0.3608]
[1723644250723,0.0841,59428.0,59414.0,0.44492]
[1723644251030,0.0094193,59435.0,59414.0,0.3608]
[1723644251332,0.084093,59434.0,59419.0,0.3608]
[1723644251627,0.00025248,59427.0,59426.0,0.084103]
[1723644252326,0.3608,59445.0,59442.0,0.08408]
[1723644252529,0.3608,59445.0,59440.0,0.3608]
[1723644252936,0.3608,59451.0,59447.0,0.084072]
[1723644253120,0.3608,59459.0,59431.0,0.084095]
[1723644253121,0.3608,59459.0,59446.0,0.7216]
[1723644253325,0.3608,59459.0,59453.0,0.3608]
[1723644253529,0.084922,59470.0,59458.0,0.084058]
[1723644253832,0.3608,59474.0,59464.0,0.3608]
[1723644254043,0.084044,59468.0,59464.0,0.3608]
[1723644254229,0.00025227,59470.0,59464.0,0.3608]
[1723644254425,0.00025227,59470.0,59469.0,0.084042]
[1723644254732,0.00025227,59470.0,59469.0,0.444842]
[1723644254930,0.00025227,59470.0,59469.0,0.3608]
[1723644255243,0.3608,59481.0,59469.0,0.3608]
[1723644255534,0.3608,59476.0,59469.0,0.3608]
[1723644255925,0.08404,59471.0,59469.0,0.3608]
[1723644256124,0.444826,59481.0,59469.0,0.3608]
[1723644256325,0.3608,59481.0,59469.0,0.3608]
[1723644256532,0.50958,59490.0,59479.0,0.444828]
[1723644256533,0.00088,59490.0,59479.0,0.444828]
[1723644256736,0.3608,59491.0,59479.0,0.444828]
[1723644256737,0.08427827,59481.0,59479.0,0.3608]
[1723644256929,0.00025227,59481.0,59479.0,0.3608]
[1723644257135,0.084027,59480.0,59479.0,0.3608]
[1723644257334,0.00025227,59481.0,59480.0,0.084027]
[1723644257726,0.00025227,59481.0,59480.0,0.588387]
[1723644257931,0.3608,59502.0,59485.0,0.08402]
[1723644258140,0.3608,59502.0,59479.0,0.3608]
[1723644258438,0.084015,59489.0,59483.0,0.084022]
[1723644258737,0.08401,59492.0,59486.0,0.3608]
[1723644258929,0.3608,59497.0,59486.0,0.3608]
[1723644259133,0.3608,59497.0,59491.0,0.3608]
[1723644259533,0.00025227,59495.0,59491.0,0.3608]
[1723644259737,0.00025227,59495.0,59494.0,0.084007]
[1723644259940,0.3608,59514.0,59493.0,0.3608]
[1723644260236,0.3608,59514.0,59503.0,0.3608]
[1723644260633,0.083988,59508.0,59503.0,0.3608]
[1723644260833,0.083968,59522.0,59503.0,0.3608]
[1723644261033,0.3608,59526.0,59511.0,0.3608]
[1723644261238,0.083969,59521.0,59515.0,0.083977]
[1723644261433,0.3608,59526.0,59517.0,0.3608]
[1723644261637,0.00015961,59524.0,59523.0,0.3608]
[1723644262145,0.00015961,59524.0,59523.0,0.444766]
[1723644262446,0.00015961,59524.0,59523.0,0.948766]
[1723644262750,0.00015961,59524.0,59523.0,1.348766]
[1723644263050,0.3608,59537.0,59523.0,0.3608]
[1723644263547,0.3608,59537.0,59533.0,0.083952]
[1723644263740,0.083943,59540.0,59533.0,0.083951]
[1723644264046,0.00937955,59543.0,59539.0,0.083944]
[1723644264344,0.083942,59541.0,59536.0,0.3608]
[1723644264539,0.083937,59544.0,59538.0,0.083945]
[1723644264744,0.3608,59545.0,59536.0,0.3608]
[1723644265044,0.444737,59545.0,59536.0,0.3608]
[1723644265240,0.083934,59546.0,59536.0,0.3608]
[1723644265445,0.3608,59545.0,59538.0,0.083945]
[1723644265830,0.3608,59545.0,59539.0,0.083943]
[1723644266031,0.083934,59546.0,59539.0,0.083943]
[1723644266236,0.37059494,59551.0,59538.0,0.001]
[1723644266445,0.00979494,59551.0,59548.0,0.083931]
[1723644266742,0.3608,59559.0,59548.0,0.3608]
[1723644267146,0.00981377,59559.0,59550.0,0.083928]
[1723644267337,0.3608,59558.0,59548.0,0.3608]
[1723644267646,0.083924,59553.0,59548.0,0.3608]
[1723644267848,0.083916,59559.0,59548.0,0.3608]
[1723644268045,0.083909,59564.0,59558.0,0.083917]
[1723644268240,0.3704761,59565.0,59548.0,0.3608]
[1723644268541,0.083913,59561.0,59548.0,0.3608]
[1723644268950,0.3608,59565.0,59548.0,0.3608]
[1723644268951,0.08391,59564.0,59557.0,0.083918]
[1723644269137,0.08391,59564.0,59553.0,0.3608]
[1723644269138,0.3608,59565.0,59553.0,0.3608]
[1723644269337,0.3608,59565.0,59548.0,0.3608]
[1723644269338,0.3608,59558.0,59548.0,0.3608]
[1723644269549,0.083924,59553.0,59548.0,0.444731]
[1723644269734,0.3608,59558.0,59549.0,0.083929]
[1723644269735,0.3608,59557.0,59549.0,0.083929]
[1723644270045,0.083917,59558.0,59548.0,0.3608]
[1723644270235,0.083918,59557.0,59549.0,0.083928]
[1723644270435,0.083918,59557.0,59548.0,0.3608]
[1723644270436,0.083912,59562.0,59553.0,0.083923]
[1723644270641,0.083914,59560.0,59548.0,0.3608]
[1723644270835,0.3608,59561.0,59555.0,0.3608]
[1723644271040,0.3608,59571.0,59559.0,0.083915]
[1723644271041,0.083909,59564.0,59559.0,0.083915]
[1723644271346,0.083911,59562.0,59560.0,0.3608]
[1723644271540,0.37063876,59571.0,59560.0,0.3608]
[1723644271541,0.083913,59561.0,59560.0,0.3608]
[1723644272348,0.37063876,59571.0,59560.0,0.3608]
[1723644272349,0.00983876,59571.0,59560.0,0.3608]
[1723644272538,0.083906,59566.0,59565.0,0.3608]
[1723644273644,0.00942112,59570.0,59561.0,0.3608]
[1723644273849,0.3608,59578.0,59567.0,0.3608]
[1723644274049,0.08389,59577.0,59567.0,0.3608]
[1723644274252,0.10389,59577.0,59568.0,0.3608]
[1723644274437,0.10389,59577.0,59561.0,0.3608]
[1723644274438,0.083907,59566.0,59561.0,0.3608]
[1723644274641,0.37028945,59578.0,59562.0,0.083911]
[1723644274836,0.083898,59571.0,59570.0,0.3608]
[1723644275347,0.083903,59568.0,59567.0,0.3608]
[1723644275649,0.37028945,59578.0,59561.0,0.3608]
[1723644275845,0.083901,59569.0,59568.0,0.3608]
[1723644276154,0.083891,59577.0,59568.0,0.3608]
[1723644276841,0.093891,59577.0,59568.0,0.3608]
[1723644277043,0.01,59577.0,59568.0,0.3608]
[1723644277243,0.37028945,59578.0,59568.0,0.444702]
[1723644277447,0.37028945,59578.0,59568.0,0.3618]
[1723644277751,0.083901,59569.0,59568.0,0.3618]
[1723644278052,0.083894,59574.0,59568.0,0.3618]
[1723644278250,0.37028945,59578.0,59568.0,0.001]
[1723644278444,0.083901,59569.0,59568.0,0.001]
[1723644278954,0.3608,59572.0,59568.0,0.001]
[1723644279142,0.0839,59570.0,59568.0,0.001]
[1723644279347,0.3608,59572.0,59568.0,0.001]
[1723644279654,0.3608,59570.0,59563.0,0.083909]
[1723644279854,0.3608,59564.0,59560.0,0.00025182]
[1723644280155,0.4447,59570.0,59562.0,0.083911]
[1723644280343,0.083902,59569.0,59562.0,0.083911]
[1723644280741,0.3608,59570.0,59560.0,0.00025182]
[1723644280742,0.00970397,59572.0,59560.0,0.00025182]
[1723644280941,0.3608,59569.0,59560.0,0.00025182]
[1723644281149,0.083913,59561.0,59560.0,0.00025182]
[1723644281349,0.3608,59569.0,59560.0,0.00025182]